Cogmind - Beta 16 @@@ ROGUE MODE // 2025.11.17 @ 23:23:29 Player: Ladmageddon Result: Smashed by cave-in Performance ------------- Evolutions (0) 0 Regions Visited (0) 0 Robots Destroyed (2) 10 Value Destroyed (14) 14 Prototype IDs (0) 0 Alien Tech Used (0) 0 Bonus (0) 0 TOTAL SCORE: 24 Bonus ------- None Cogmind --------- Core Integrity 0/250 Matter 105/300 Energy 125/125 System Corruption 25% Temperature Hot (231) Movement Core (150) Ox2 Location -11/Scrapyard Parts ------- > --- POWER (1) -------- Light Ion Engine > --- PROPULSION (2) --- (None) > --- UTILITY (2) ------ Seismic Detector > --- WEAPON (2) ------- Medium Laser Assault Rifle > --- INVENTORY (5) ---- (None) Peak State ------------ > --- POWER ------------ Light Ion Engine > --- PROPULSION ------- Light Treads Light Treads > --- UTILITY ---------- Small Storage Unit Improved Terrain Scanner > --- WEAPON ----------- EM Pulse Gun Assault Rifle > --- INVENTORY -------- Light Ion Engine Wheel Wheel Seismic Detector Medium Laser Mining Laser [Rating: 9] Favorites ----------- Power Light Ion Engine Engine Light Ion Engine Propulsion Light Treads Treads Light Treads Wheel Wheel Utility Small Storage Unit Device Improved Terrain Scanner Storage Small Storage Unit Weapon EM Pulse Gun Energy Gun EM Pulse Gun Ballistic Gun Assault Rifle Special Weapon Mining Laser Build | -11 ------- Run | Yrd Slots Evolved . | . Power . | . Propulsion . | . Utility . | . Weapon . | . Parts Attached 12 | 12 Power 2 | 2 Engine 2 | 2 Core . | . Reactor . | . Propulsion 3 | 3 Treads 2 | 2 Leg . | . Wheel 1 | 1 Hover . | . Flight . | . Utility 3 | 3 Device 2 | 2 Storage 1 | 1 Processor . | . Hackware . | . Protection . | . Artifact . | . Weapon 4 | 4 Energy Gun 2 | 2 Energy Cannon . | . Ballistic Gun 1 | 1 Ballistic Cannon . | . Launcher . | . Special Weapon 1 | 1 Impact Weapon . | . Slashing Weapon . | . Piercing Weapon . | . Special Melee Weapon . | . Unidentified Prototypes . | . Parts Lost 8 | 8 Power 1 | 1 Propulsion 3 | 3 Utility 2 | 2 Weapon 2 | 2 Highest Loss Streak 5 | 5 To Critical Strikes . | . Average Backups 4 | 4 Power . | . Propulsion 1 | 1 Utility . | . Weapon 1 | 1 Tool/Special . | . Unused Backups 1 | 1 Power . | . Propulsion 1 | 1 Utility . | . Weapon . | . Tool/Special . | . Average Slot Usage (%) . | . Peak Build Rating 9 | 9 Average Rating 6 | 6 On Entrance . | . Avg Prop Armor Cover (%) . | . Naked Turns . | . Heaviest Build 13 | 13 Greatest Support 40 | 40 Greatest Overweight (x) 2 | 2 Average Overweight (x) . | . Largest Inventory Capacity 8 | 8 Average Capacity 7 | 7 Most Carried 8 | 8 Average Carried 4 | 4 Final Capacity 5 | 5 Final Carried . | . Class Distribution -------------------- None Dominant Class ---------------- None Resources | -11 ----------- Run | Yrd Matter Collected 172 | 172 Remotely . | . Salvage Created 47 | 47 Parts 6 | 6 Haulers Intercepted . | . Recyclers Shooed . | . Parts Field Recycled . | . Retrieved Matter . | . Parts Self-Destructed . | . Prevented . | . Parts Restored . | . Kills | -11 ------- Run | Yrd Combat Hostiles Destroyed . | . Classes Destroyed 1 | 1 Tunneler 2 | 2 Best Kill Streak 1 | 1 Combat Bots Only . | . Max Kills in Single Turn 1 | 1 Gunslinging . | . Exploded . | . Melee . | . Uniques/NPCs Destroyed . | . Combat | -11 -------- Run | Yrd Hostile Shots Fired . | . Missed . | . Hits . | . Damage Taken 1191 | 1191 Core 282 | 282 Absorbed by Shields . | . Core Remaining (%) . | . Volleys Fired 53 | 53 Largest 2 | 2 Hottest 100 | 100 Shots Fired 67 | 67 Gun 28 | 28 Cannon . | . Launcher . | . Special 39 | 39 Kinetic 14 | 14 Thermal 50 | 50 Explosive . | . Electromagnetic 3 | 3 Robot Hit Streak 4 | 4 Robot Miss Streak . | . Penetration Max . | . Secondary Targets . | . Shots Hit Robots 4 | 4 Core Hits 2 | 2 Critical Kills . | . Critical Parts Destroyed . | . Critical Strikes . | . Melee Attacks . | . Impact . | . Slashing . | . Piercing . | . Sneak Attacks . | . Combat Hostiles . | . Follow-up Attacks . | . Damage Inflicted 55 | 55 Guns 55 | 55 Cannons . | . Explosions . | . Melee . | . Ramming . | . Kinetic 15 | 15 Thermal . | . Explosive . | . Electromagnetic 40 | 40 Impact . | . Slashing . | . Piercing . | . Highest Corruption 22 | 22 Average Corruption 13 | 13 Corruption Purged . | . Corruption Blocked . | . Effects 7 | 7 Message Errors 1 | 1 Heat Flow Errors 3 | 3 Energy Discharges 2 | 2 Data Loss (minor) 1 | 1 Overload Shots . | . Overflow Damage . | . Projectiles . | . Explosions . | . Melee . | . Knockbacks . | . Impact . | . Kinetic . | . Secondary . | . Self-Inflicted Damage . | . Shots . | . Rammed . | . Targets Rammed . | . Kicked . | . Crushed . | . Highest Temperature 329 | 329 Average Temperature 112 | 112 Received Heat Transfer . | . Effects 4 | 4 Energy Bleed 2 | 2 Matter Decay 1 | 1 Damage (minor) 1 | 1 Siege Activations . | . Martial Activations . | . Shielding Activations . | . Robots Disrupted . | . Combat Hostiles . | . Robots Corrupted . | . Combat Hostiles . | . Parts Fried . | . Impact Corruptions . | . Robots Melted . | . Combat Hostiles . | . Parts Melted . | . Heat Transferred . | . Parts Sabotaged . | . Parts Stolen . | . Parts Stripped . | . Power Chain Reactions . | . Alert | -11 ------- Run | Yrd Maximum Alert Level . | . Low Security (%) 100 | 100 Level 1 . | . Level 2 . | . Level 3 . | . Level 4 . | . Level 5 . | . High Security . | . Max Security . | . Peak Influence 6 | 6 Initial . | . Average . | . Influence Increases 10 | 10 Destroy 0b10 Robot/NC 10 | 10 Influence Decreases 10 | 10 Time Decay 10 | 10 Squads Dispatched . | . Investigation . | . Extermination . | . Reinforcement . | . Assault . | . Garrison . | . Intercept . | . Searches Triggered . | . Construction Impeded . | . Haulers Reinforced . | . Active Scanning Responses . | . Cargo Convoy Interrupts . | . Stealth | -11 --------- Run | Yrd Distress Signals . | . Communications Jammed . | . Distress Signals . | . Times Spotted . | . Peak Tracking Total . | . Tactical Retreats . | . Traps | -11 ------- Run | Yrd Traps Triggered . | . Indirectly . | . Trap Hack Attempts . | . Triggered . | . Disarmed . | . Reprogrammed . | . Reused . | . Traps Extracted . | . Installed . | . Triggered . | . Machines | -11 ---------- Run | Yrd Machines Disabled . | . Max in Single Turn . | . Machines Repaired . | . Machines Dismantled . | . Machines Sabotaged . | . Overloaded Fab Kills . | . Hacking | -11 --------- Run | Yrd Machines Accessed . | . Terminals . | . Fabricators . | . Repair Stations . | . Recycling Units . | . Scanalyzers . | . Garrison Access . | . Total Hacks . | . Successful . | . Failed . | . Catastrophic . | . Database Lockouts . | . Manual . | . Terminals . | . Fabricators . | . Repair Stations . | . Recycling Units . | . Scanalyzers . | . Garrison Access . | . Terminal Hacks . | . Fabricator Hacks . | . Repair Station Hacks . | . Recycling Unit Hacks . | . Scanalyzer . | . Garrison Access Hacks . | . Unauthorized Hacks . | . Terminals . | . Fabricators . | . Repair Stations . | . Recycling Units . | . Scanalyzers . | . Garrison Access . | . Data Cores Recovered . | . Used . | . Hacking Detections . | . Full Trace Events . | . Feedback Events . | . Feedback Blocked . | . Robot Schematics Acquired . | . Robots Built . | . Authchips . | . Time . | . Total Robot Build Rating . | . Part Schematics Acquired . | . Parts Built . | . Authchips . | . Time . | . Total Part Build Rating . | . Part Studies Acquired . | . Parts Repaired . | . Time . | . Parts Recycled . | . Recycled Matter . | . Retrieved Matter . | . Retrieved Components . | . Parts Scanalyzed . | . Part Schematics Acquired . | . Parts Damaged . | . Bothacking | -11 ------------ Run | Yrd Used RIF Installer . | . Robots Hacked . | . Non-combat . | . Combat . | . Robot Hacks Applied . | . Relay Couplers Released . | . Fabnet Peak Effective % . | . Robots Rewired . | . Allies Hacked . | . Hacks Repelled . | . Allies | -11 -------- Run | Yrd Total Allies . | . Largest Group . | . Highest-Rated Group . | . Highest-Rated Ally . | . Total Orders . | . Ally Attacks . | . Total Damage . | . Kills . | . Allies Corrupted . | . Allies Melted . | . Intel | -11 ------- Run | Yrd Active Infowar (turns) 370 | 370 Terrain 274 | 274 Seismic 96 | 96 Robot Analysis Total . | . Derelict Logs Recovered . | . Drone Launches . | . Drone Recoveries . | . Exploration | -11 ------------- Run | Yrd Turns Passed 3152 | 3152 Spaces Moved 1762 | 1762 Core 31 | 31 Treads 1731 | 1731 Legs . | . Wheels . | . Hover . | . Flight . | . Fastest Speed 50 | 50 Average Speed 158 | 158 Slowest Speed 160 | 160 Overloaded Moves . | . Propulsion Burnouts . | . Robots Hopped . | . Potential Cave-ins 28 | 28 Cave-ins Triggered 6 | 6 Exploration Rate (%) 94 | 94 Regions Visited . Branch Regions . Pre-discovered Areas . | . Known Exits Taken . | . Unknown Exits Taken . | . Scrap Searched . | . Spaces Dug 32 | 32 Terrain Destroyed 33 | 33 Melee . | . Projectile 33 | 33 AOE . | . Terrain Rammed . | . Walls Destroyed . | . Machines Disabled . | . Actions | -11 --------- Run | Yrd Total 1974 | 1974 Wait 134 | 134 Move 1759 | 1759 Hop . | . Pick Up 11 | 11 Fast Attach 2 | 2 Attach 10 | 10 Detach . | . Swap 2 | 2 Drop . | . Fire 53 | 53 Melee . | . Ram . | . Kick . | . Crush . | . Escape Stasis 3 | 3 Rewire . | . Trap . | . Miscellaneous . | . Route ------- -11/Scrapyard (discovered 1 exit: [*Mat]) History --------- Turn | Location | Event 10 | -11/Scrapyard | Discovered new exit (range 16) 2885 | -11/Scrapyard | Crushed by falling debris 2886 | -11/Scrapyard | Core integrity fell below 50% 2942 | -11/Scrapyard | Crushed by falling debris 2942 | -11/Scrapyard | Core integrity fell below 20% 2970 | -11/Scrapyard | Crushed by falling debris 3043 | -11/Scrapyard | Crushed by falling debris 3044 | -11/Scrapyard | System corruption reached 10% 3051 | -11/Scrapyard | Crushed by falling debris 3082 | -11/Scrapyard | Lost 5 parts (1p1n2u1w) 3154 | -11/Scrapyard | Crushed by falling debris 3154 | -11/Scrapyard | Smashed by cave-in Last Messages --------------- System corrupted by crushing effect (+4). Imp. Terrain Scanner destroyed. System corrupted by crushing effect (+2). Lgt. Ion Engine destroyed. System corrupted by crushing effect (+1). The unstable cave ceiling collapses. Crushed by falling debris. Sml. Storage Unit destroyed. System corrupted by crushing effect (+4). Lgt. Treads destroyed. System corrupted by crushing effect (+5). Wheel crushed. System corrupted: Energy discharge (-34). System corrupted: Heat flow error (+281). System corrupted: Component data lost. System corrupted: Heat flow error (+135). The unstable cave ceiling collapses. Crushed by falling debris. Wheel destroyed. System corrupted by crushing effect (+3). Map ----- +----------------------------------------------------+ | | | | | | | | | | | ?????????????????????????????????????????????????? | | ???????#?????????????????????????????????????????? | | ??????????#???????????????#??????????????????????? | | ??????#??????????????????????????????????????????? | | ????????????#??????????#?????????????????????????? | | ?????????#???????????????????????????????????????? | | ????????#???#?????????#?????????#????????????????? | | ?#???#??#???#???????#????????????????????????????? | | ?????????#?????????????#?????????????????????????? | | ?#?#????#?#??#??????#?????#????#?????????????????? | | ###???##?#?????????????#????????##???????????????? | | ???????#???##??#???????##????#??#??#?#???????????? | | ??????#????######?#?#????????????#???????????????? | | ???#??##?#?# # ####???#??#???????????????????????? | | ?????????### ###?#??????#???????????????????? | | #?????????# ###### ###??????????????????????????? | | ##???????####????#### #???#??????????????????????? | | #?????### ##?????## ##??????????????????????????? | | #???#?## ##??????####???#####???????????????????? | | ###########????#### ###### ##????#??????????????? | | # #???##????## ##@####???#???????????????? | | # ##### ####???????### ###??????????#????#??????? | | ## ## #?????????######??????????????????????? | | # # #??????????####??##???????????????????? | | #??#????#???#???#????#????????????????? | | # # #?????????#???????????????????????????? | | ## ## #?#?????????#?????#???????????????????? | | ?# ## ##????#??#?#??#????#???#??????????????? | | ?# #########???#???#?????????????????????????????? | | ?# #???????#?#???#??##???#??????????#????????????? | | ?# #??????#?#????????????????????????#???????????? | | ## ####??????????#?????????#?????????????????????? | | #??????#???????????????????????????????????? | | #?#???????#######??????????????????????????? | | #?#???????## #?????#????????????????????? | | #?????????# #??????????????????????????? | | #?????????# #????#########?????????????? | | #???#?????# ###### ##????????????? | | ### ############# # # #????????????? | | # # # #????????????? | | # # # #????????????? | | ####### # # # # #????????????? | | ??????# # ## ## #????????????? | | #?????# # # ## ## #????????????? | | ??????# # # ## ## #????????????? | +----------------------------------------------------+ Best States ------------- Heat Dissipation 25 Energy Generation 10 Energy Capacity 125 Matter Stores 183 Matter Capacity 300 Sight Range 16 Terrain Scan Range 16 Terrain Scan Density 10 Evasion (%) 50 Recoil Reduction 2 Item Schematics ----------------- None Robot Schematics ------------------ None Fabricated ------------ Nothing Repaired ---------- Nothing Studied --------- None Alien Tech Used ----------------- None Achievements -------------- Organ Harvest Challenges ------------ None Game ------ Seed MicrowarpGodLeg Manual? 0 Play Time 00:20:40 Cumulative 19.8 hours Start 2025.11.17 @ 23:13:00 End 2025.11.17 @ 23:23:29 Sessions 0 Manual Loads 0 Difficulty Rogue Special Mode None Game No. 49 Rogue 46 Adventurer 3 Explorer 0 Win Type - Total 0 Types 0/0/0/0/0/0/0/0/0/0 Lore% 12 Gallery% 26 Achievement% 13 Wizard Run 0 Options --------- Layout 1 ASCII 0 Keyboard 0 Movement Numpad Keybinds 0 Fullscreen 1 Font 16/SmallcapsGlow Map View 50x40 Zoom Use 0% Tactical HUD 0 Map Filters NONE Filters NONE Steam SD RUN: 55662564-f9a9-416e-a0ad-53474af413b9